fUST/lending_fUST_20251023
["ID","MTS","AMOUNT","RATE_DAILY","PERIOD"]
[392135929,1761202251821,-500.0,0.00038356,7]
[392135930,1761202251830,-402.12989135,0.00038356,7]
[392135931,1761202251840,-212.8809562,0.00038356,7]
[392135932,1761202251850,-500.0,0.00038356,7]
[392135933,1761202251859,-500.0,0.00038356,7]
[392135934,1761202251869,-500.0,0.00038356,7]
[392135935,1761202251878,-231.29676047,0.00038356,7]
[392135936,1761202251888,-194.41121027,0.00038356,7]
[392135937,1761202251897,-500.0,0.00038356,7]
[392135938,1761202251907,-500.0,0.00038356,7]
[392135939,1761202251916,-450.36580404,0.00038356,7]
[392135940,1761202251926,-178.97231112,0.00038356,7]
[392135941,1761202251935,-179.24156653,0.00038356,7]
[392135942,1761202251945,-500.0,0.00038356,7]
[392135943,1761202251955,-500.0,0.00038356,7]
[392135944,1761202251965,-305.94413622,0.00038356,7]
[392135945,1761202251975,-400.67430237,0.00038356,7]
[392135946,1761202251985,-408.38646288,0.00038356,7]
[392135947,1761202251994,-500.0,0.00038356,7]
[392135948,1761202252004,-263.85072868,0.00038356,7]
[392135949,1761202252013,-500.0,0.00038356,7]
[392135950,1761202252023,-157.77899721,0.00038356,7]
[392135951,1761202252033,-355.72005094,0.00038356,7]
[392135952,1761202252042,-500.0,0.00038356,7]
[392135953,1761202252051,-500.0,0.00038356,7]
[392135954,1761202252060,-293.39608345,0.00038356,7]
[392135955,1761202252070,-234.40048094,0.00038356,7]
[392135956,1761202252079,-500.0,0.00038356,7]
[392135957,1761202252089,-490.14612637,0.00038356,7]
[392135958,1761202252098,-434.58962561,0.00038356,7]
[392135959,1761202252109,-500.0,0.00038356,7]
[392135960,1761202252118,-422.71253749,0.00038356,7]
[392135961,1761202252128,-211.83687582,0.00038356,7]
[392135962,1761202252138,-500.0,0.00038356,7]
[392135963,1761202252148,-514.02,0.00038356,7]
[392135964,1761202252157,-500.0,0.00038356,7]
[392135965,1761202252167,-11187.4,0.00038356,3]
[392135966,1761202252177,-500.0,0.00038356,7]
[392135967,1761202252186,-170.70042801,0.00038356,7]
[392135968,1761202252196,-500.0,0.00038356,7]
[392135969,1761202252205,-168.77380609,0.00038356,7]
[392135970,1761202252215,-500.0,0.00038356,7]
[392135971,1761202252224,-181.87069419,0.00038356,7]
[392135972,1761202252234,-500.0,0.00038356,7]
[392135973,1761202252244,-167.09330424,0.00038356,7]
[392135974,1761202252253,-500.0,0.00038356,7]
[392135975,1761202252262,-185.29279125,0.00038356,7]
[392135976,1761202252271,-384.07692606,0.00038356,7]
[392135977,1761202252281,-257.0282619,0.00038356,7]
[392135978,1761202252291,-500.0,0.00038356,7]
[392135979,1761202252300,-335.42444927,0.00038356,7]
[392135980,1761202252309,-305.09672469,0.00038356,7]
[392135981,1761202252323,-236.8051995,0.00038356,7]
[392135982,1761202252332,-500.0,0.00038356,7]
[392135983,1761202252341,-324.54911253,0.00038356,7]
[392135984,1761202252351,-500.0,0.00038356,7]
[392135985,1761202252361,-500.0,0.00038356,7]
[392135986,1761202252370,-265.02669889,0.00038356,7]
[392135987,1761202252379,-379.59257938,0.00038356,7]
[392135988,1761202252388,-500.0,0.00038356,7]
[392135989,1761202252400,-183.70670103,0.00038356,7]
[392135990,1761202252409,-380.84062841,0.00038356,7]
[392135991,1761202252419,-228.40646185,0.00038356,7]
[392135992,1761202252428,-531.3,0.00038356,7]
[392135993,1761202252438,-556.15646685,0.00038356,7]
[392135994,1761202252447,-500.0,0.00038356,7]
[392135995,1761202252456,-323.82178779,0.00038356,7]
[392135996,1761202252466,-1197.47,0.00038356,7]
[392135997,1761202252476,-350.53115379,0.00038356,7]
[392135998,1761202252485,-175.82563167,0.00038356,7]
[392135999,1761202252494,-214.39243113,0.00038356,7]
[392136000,1761202252503,-516.51434896,0.00038356,7]
[392136001,1761202252512,-500.0,0.00038356,7]
[392136002,1761202252521,-500.0,0.00038356,7]
[392136003,1761202252531,-512.29590428,0.00038356,7]
[392136004,1761202252540,-526.54035765,0.00038356,7]
[392136005,1761202252550,-215.9451639,0.00038356,7]
[392136006,1761202252560,-500.0,0.00038356,7]
[392136007,1761202252569,-182.21471249,0.00038356,7]
[392136008,1761202252579,-226.80249911,0.00038356,7]
[392136009,1761202252589,-400.11137393,0.00038356,7]
[392136010,1761202252598,-276.73193961,0.00038356,7]
[392136011,1761202252608,-500.0,0.00038356,7]
[392136012,1761202252617,-487.7360383,0.00038356,7]
[392136013,1761202252627,-194.58328507,0.00038356,7]
[392136014,1761202252636,-500.0,0.00038356,7]
[392136015,1761202252645,-382.4063758,0.00038356,7]
[392136016,1761202252655,-155.70505452,0.00038356,7]
[392136017,1761202252664,-500.0,0.00038356,7]
[392136018,1761202252674,-449.47342284,0.00038356,7]
[392136019,1761202252684,-414.52581936,0.00038356,7]
[392136020,1761202252693,-415.57073148,0.00038356,7]
[392136021,1761202252702,-332.14377068,0.00038356,7]
[392136022,1761202252712,-500.0,0.00038356,7]
[392136023,1761202252721,-500.0,0.00038356,7]
[392136024,1761202252731,-500.72090013,0.00038356,7]
[392136025,1761202252740,-270.88918857,0.00038356,7]
[392136026,1761202252749,-428.81644906,0.00038356,7]
[392136027,1761202252759,-500.0,0.00038356,7]
[392136028,1761202252769,-354.51184471,0.00038356,7]
[392136029,1761202252779,-500.0,0.00038356,7]
[392136030,1761202252788,-500.0,0.00038356,7]
[392136031,1761202252798,-460.0,0.00038356,7]
[392136032,1761202252808,-523.42,0.00038356,7]
[392136033,1761202252817,-289.82184629,0.00038356,7]
[392136034,1761202252827,-500.0,0.00038356,7]
[392136035,1761202252837,-600.47271038,0.00038356,7]
[392136036,1761202252846,-452.34082099,0.00038356,7]
[392136037,1761202252856,-613.10577721,0.00038356,7]
[392136038,1761202252865,-500.0,0.00038356,7]
[392136039,1761202252875,-196.26625089,0.00038356,7]
[392136040,1761202252884,-346.50622131,0.00038356,7]
[392136041,1761202252894,-484.03210109,0.00038356,7]
[392136042,1761202252903,-494.02976276,0.00038356,7]
[392136043,1761202252912,-384.57915939,0.00038356,7]
[392136044,1761202252990,-500.0,0.00038356,7]
[392136045,1761202252999,-500.0,0.00038356,7]
[392136046,1761202253009,-500.0,0.00038356,7]
[392136047,1761202253019,-1700.97,0.00038356,7]
[392136048,1761202253028,-232.76938861,0.00038356,7]
[392136049,1761202253038,-2553.03,0.00038356,7]
[392136050,1761202253048,-397.57786116,0.00038356,7]
[392136051,1761202253057,-580.31214868,0.00038356,7]
[392136052,1761202253066,-500.0,0.00038356,7]
[392136053,1761202253076,-157.43606649,0.00038356,7]
[392136054,1761202253085,-500.0,0.00038356,2]
[392136055,1761202253094,-262.94871818,0.00038356,7]
[392136056,1761202253104,-282.6246336,0.00038356,7]
[392136057,1761202253113,-226.05412842,0.00038356,7]
[392136058,1761202253123,-500.0,0.00038356,7]
[392136059,1761202253132,-247.17761021,0.00038356,7]
[392136060,1761202253141,-27239.61,0.00038356,7]
[392136061,1761202253151,-500.0,0.00038356,2]
[392136062,1761202253160,-279.30888542,0.00038356,7]
[392136063,1761202253169,-188.9332407,0.00038356,7]
[392136064,1761202253179,-500.0,0.00038356,7]
[392136065,1761202253188,-500.0,0.00038356,7]
[392136066,1761202253197,-204.47875267,0.00038356,7]
[392136067,1761202253207,-1208.01,0.00038356,7]
[392136068,1761202253216,-500.0,0.00038356,7]
[392136069,1761202253225,-159.94131793,0.00038356,7]
[392136070,1761202253235,-502.99363436,0.00038356,7]
[392136071,1761202253245,-500.0,0.00038356,7]
[392136072,1761202253255,-240.02210519,0.00038356,7]
[392136073,1761202253265,-500.0,0.00038356,7]
[392136074,1761202253274,-416.80857842,0.00038356,7]
[392136075,1761202253284,-332.90392377,0.00038356,7]
[392136076,1761202253293,-164.59856393,0.00038356,7]
[392136077,1761202253303,-464.19510521,0.00038356,7]
[392136078,1761202253312,-500.0,0.00038356,7]
[392136079,1761202253324,-284.38577741,0.00038356,7]
[392136080,1761202253335,-369.05892015,0.00038356,7]
[392136081,1761202253346,-226.95524085,0.00038356,7]
[392136082,1761202253357,-2266.46,0.00038356,7]
[392136083,1761202253369,-499.99953572,0.00038356,7]
[392136084,1761202253380,-485.52806595,0.00038356,7]
[392136085,1761202253391,-618.02,0.00038356,7]
[392136086,1761202253403,-224.52507196,0.00038356,7]
[392136087,1761202253413,-311.95265036,0.00038356,7]
[392136088,1761202253423,-187.53970039,0.00038356,7]
[392136089,1761202253433,-324.04913703,0.00038356,7]
[392136090,1761202253443,-500.0,0.00038356,7]
[392136091,1761202253454,-588.65568256,0.00038356,7]
[392136092,1761202253463,-222.16099063,0.00038356,7]
[392136093,1761202253473,-354.55970913,0.00038356,7]
[392136094,1761202253484,-500.0,0.00038356,7]
[392136095,1761202253494,-398.81064425,0.00038356,7]
[392136096,1761202253504,-531.06538405,0.00038356,7]
[392136097,1761202253514,-514.5,0.00038356,7]
[392136098,1761202253523,-1720.5,0.00038356,7]
[392136099,1761202253533,-334.00206791,0.00038356,7]
[392136100,1761202253544,-383.6180681,0.00038356,7]
[392136101,1761202253554,-194.47261506,0.00038356,7]
[392136102,1761202253564,-550.72828213,0.00038356,7]
[392136103,1761202253574,-500.0,0.00038356,7]
[392136104,1761202253584,-227.30405949,0.00038356,7]
[392136105,1761202253594,-500.0,0.00038356,7]
[392136106,1761202253604,-275.24835066,0.00038356,7]
[392136107,1761202253614,-200.72523988,0.00038356,7]
[392136108,1761202253624,-200.0,0.00038373,5]
[392136109,1761202253634,-600.0,0.00038394,90]
[392136110,1761202253643,-157.782621,0.00038449,30]
[392136111,1761202253652,-1000.0,0.00038485,7]
[392136112,1761202253662,-500.0,0.0003863,7]
[392136113,1761202253672,-500.0,0.0003863,7]
[392136114,1761202253682,-1000.0,0.0003863,2]
[392136115,1761202253692,-500.0,0.0003863,7]
[392136116,1761202253702,-157.64040162,0.0003863,7]
[392136117,1761202253712,-500.0,0.0003863,7]
[392136118,1761202253722,-500.0,0.0003863,7]
[392136119,1761202253732,-500.0,0.0003863,7]
[392136120,1761202253741,-361.66841836,0.0003863,7]
[392136121,1761202253751,-500.0,0.0003863,7]
[392136122,1761202253760,-500.0,0.0003863,2]
[392136123,1761202253770,-500.0,0.0003863,7]
[392136124,1761202253780,-500.0,0.0003863,7]
[392136125,1761202253789,-500.0,0.0003863,7]
[392136126,1761202253799,-200.0,0.0003863,7]
[392136127,1761202253809,-500.0,0.0003863,7]
[392136128,1761202253818,-500.0,0.0003863,7]
[392136129,1761202253828,-500.0,0.0003863,7]
[392136130,1761202253838,-500.0,0.0003863,7]
[392136131,1761202253848,-1000.0,0.0003863,2]
[392136132,1761202253858,-500.0,0.0003863,7]
[392136133,1761202253868,-302.04348346,0.0003863,7]
[392136134,1761202253878,-500.0,0.0003863,5]
[392136135,1761202253888,-262.10778046,0.0003863,7]
[392136136,1761202253898,-500.0,0.0003863,7]
[392136137,1761202253908,-500.0,0.0003863,7]
[392136138,1761202253917,-500.0,0.0003863,7]
[392136139,1761202253927,-2627.49,0.0003863,2]
[392136140,1761202253936,-500.0,0.0003863,7]
[392136141,1761202253946,-151.18458519,0.0003863,7]
[392136142,1761202253955,-754.29,0.0003863,7]
[392136143,1761202253964,-625.65,0.0003863,7]
[392136144,1761202253974,-500.0,0.0003863,7]
[392136145,1761202253984,-3507.78,0.0003863,7]
[392136146,1761202253993,-500.0,0.0003863,7]
[392136147,1761202254002,-500.0,0.0003863,7]
[392136148,1761202254011,-555.62397478,0.0003863,7]
[392136149,1761202254021,-508.65832661,0.0003863,7]
[392136150,1761202254031,-500.0,0.0003863,7]
[392136151,1761202254040,-500.0,0.0003863,7]
[392136152,1761202254050,-1000.0,0.0003863,5]
[392136153,1761202254060,-500.0,0.0003863,7]
[392136154,1761202254069,-533.65,0.0003863,7]
[392136155,1761202254079,-500.0,0.0003863,7]
[392136156,1761202254089,-500.0,0.0003863,7]
[392136157,1761202254099,-2253.85,0.0003863,7]
[392136158,1761202254110,-5147.27,0.0003863,7]
[392136159,1761202254121,-500.0,0.0003863,7]
[392136160,1761202254132,-500.0,0.0003863,7]
[392136161,1761202254142,-500.0,0.0003863,7]
[392136162,1761202254152,-500.0,0.0003863,7]
[392136163,1761202254162,-182.0,0.0003863,7]
[392136164,1761202254172,-641.75,0.0003863,2]
[392136165,1761202254182,-500.0,0.0003863,7]
[392136166,1761202254192,-500.0,0.0003863,7]
[392136167,1761202254201,-500.0,0.0003863,7]
[392136168,1761202254211,-561.87520981,0.0003863,2]
[392136169,1761202254220,-500.0,0.0003863,7]
[392136170,1761202254230,-582.88302623,0.0003863,7]
[392136171,1761202254240,-500.0,0.0003863,7]
[392136172,1761202254252,-500.0,0.0003863,2]
[392136173,1761202254261,-500.0,0.0003863,7]
[392136174,1761202254271,-500.0,0.0003863,7]
[392136175,1761202254281,-500.0,0.0003863,7]
[392136176,1761202254290,-1620.7,0.0003863,7]
[392136177,1761202254300,-500.0,0.0003863,7]
[392136178,1761202254309,-456.98170872,0.0003863,7]
[392136179,1761202254319,-500.0,0.0003863,7]
[392136180,1761202254334,-512.77783627,0.0003863,7]
[392136181,1761202254343,-500.0,0.0003863,7]
[392136182,1761202254354,-500.0,0.0003863,7]
[392136183,1761202254365,-500.0,0.0003863,7]
[392136184,1761202254374,-405.37361164,0.0003863,7]
[392136185,1761202254383,-500.0,0.0003863,7]
[392136186,1761202254394,-500.0,0.0003863,7]
[392136187,1761202254404,-500.0,0.0003863,7]
[392136188,1761202254413,-500.0,0.0003863,7]
[392136189,1761202254423,-256.58914701,0.0003863,7]
[392136190,1761202254433,-500.0,0.0003863,7]
[392136191,1761202254443,-500.0,0.0003863,7]
[392136192,1761202254459,-514.02,0.0003863,7]
[392136193,1761202254534,-11187.4,0.0003863,3]
[392136194,1761202254545,-500.0,0.0003863,7]
[392136195,1761202254555,-343.78616255,0.0003863,7]
[392136196,1761202254565,-274.70571813,0.0003863,7]
[392136197,1761202254575,-500.0,0.0003863,7]
[392136198,1761202254584,-285.00180657,0.0003863,7]
[392136199,1761202254594,-500.0,0.0003863,7]
[392136200,1761202254604,-500.0,0.0003863,7]
[392136201,1761202254614,-500.0,0.0003863,7]
[392136202,1761202254624,-500.0,0.0003863,7]
[392136203,1761202254634,-500.0,0.0003863,7]
[392136204,1761202254645,-531.3,0.0003863,7]
[392136205,1761202254654,-500.0,0.0003863,7]
[392136206,1761202254664,-1197.47,0.0003863,7]
[392136207,1761202254674,-500.0,0.0003863,7]
[392136208,1761202254683,-500.0,0.0003863,7]
[392136209,1761202254693,-500.0,0.0003863,7]
[392136210,1761202254702,-500.0,0.0003863,7]
[392136211,1761202254711,-2708.55,0.0003863,120]
[392136212,1761202254721,-500.0,0.0003863,7]
[392136213,1761202254731,-500.0,0.0003863,7]
[392136214,1761202254740,-181.88529175,0.0003863,7]
[392136215,1761202254751,-500.0,0.0003863,7]
[392136216,1761202254761,-500.0,0.0003863,7]
[392136217,1761202254770,-550.14015895,0.0003863,7]
[392136218,1761202254779,-183.64687245,0.0003863,7]
[392136219,1761202254789,-523.42,0.0003863,7]
[392136220,1761202254799,-500.0,0.0003863,7]
[392136221,1761202254809,-277.52441231,0.0003863,7]
[392136222,1761202254818,-500.0,0.0003863,7]
[392136223,1761202254828,-155.94989284,0.0003863,7]
[392136224,1761202254838,-183.64611913,0.0003863,7]
[392136225,1761202254847,-1700.97,0.0003863,7]
[392136226,1761202254857,-2553.03,0.0003863,7]
[392136227,1761202254866,-320.70036095,0.0003863,7]
[392136228,1761202254876,-500.0,0.0003863,2]
[392136229,1761202254886,-500.0,0.0003863,7]
[392136230,1761202254895,-27239.61,0.0003863,7]
[392136231,1761202254904,-388.26,0.0003863,2]
[392136232,1761202254915,-215.58490785,0.0003863,7]
[392136233,1761202254924,-500.0,0.0003863,7]
[392136234,1761202254934,-1208.01,0.0003863,7]
[392136235,1761202254944,-500.0,0.0003863,7]
[392136236,1761202254954,-500.0,0.0003863,7]
[392136237,1761202254964,-500.0,0.0003863,7]
[392136238,1761202254973,-264.03706792,0.0003863,7]
[392136239,1761202254987,-2266.46,0.0003863,7]
[392136240,1761202254997,-618.02,0.0003863,7]
[392136241,1761202255007,-500.0,0.0003863,7]
[392136242,1761202255016,-500.0,0.0003863,7]
[392136243,1761202255026,-514.5,0.0003863,7]
[392136244,1761202255035,-1720.5,0.0003863,7]
[392136245,1761202255045,-500.0,0.0003863,7]
[392136246,1761202255055,-596.65140963,0.0003863,7]
[392136247,1761202255065,-540.12,0.000387,7]
[392136248,1761202255074,-1954.95,0.000387,14]
[392136249,1761202255085,-1000.0,0.00038759,7]
[392136250,1761202255096,-411.0,0.00038766,2]
[392136251,1761202255106,-400.0,0.00038784,5]
[392136252,1761202255115,-1000.0,0.000388,90]
[392136253,1761202255126,-1000.0,0.00038888,30]
[392136254,1761202255137,-500.0,0.00038904,7]
[392136255,1761202255146,-500.0,0.00038904,7]
[392136256,1761202255155,-1000.0,0.00038904,2]
[392136257,1761202255165,-500.0,0.00038904,7]
[392136258,1761202255174,-500.0,0.00038904,7]
[392136259,1761202255183,-500.0,0.00038904,7]
[392136260,1761202255193,-500.0,0.00038904,7]
[392136261,1761202255202,-500.0,0.00038904,7]
[392136262,1761202255219,-500.0,0.00038904,2]
[392136263,1761202255235,-500.0,0.00038904,7]
[392136264,1761202255251,-500.0,0.00038904,7]
[392136265,1761202255264,-500.0,0.00038904,7]
[392136266,1761202255279,-200.0,0.00038904,7]
[392136267,1761202255294,-500.0,0.00038904,7]
[392136268,1761202255310,-500.0,0.00038904,7]
[392136269,1761202255328,-500.0,0.00038904,7]
[392136270,1761202255343,-500.0,0.00038904,7]
[392136271,1761202255357,-1000.0,0.00038904,2]
[392136272,1761202255372,-342.43744456,0.00038904,7]
[392136273,1761202255387,-500.0,0.00038904,5]
[392136274,1761202255402,-500.0,0.00038904,7]
[392136275,1761202255415,-500.0,0.00038904,7]
[392136276,1761202255426,-500.0,0.00038904,7]
[392136277,1761202255439,-2627.49,0.00038904,2]
[392136278,1761202255452,-500.0,0.00038904,7]
[392136279,1761202255468,-754.29,0.00038904,7]
[392136280,1761202255481,-625.65,0.00038904,7]
[392136281,1761202255497,-608.6498782,0.00038904,7]
[392136282,1761202255513,-3507.78,0.00038904,7]
[392136283,1761202255526,-500.0,0.00038904,7]
[392136284,1761202255536,-500.0,0.00038904,7]
[392136285,1761202255548,-500.0,0.00038904,7]
[392136286,1761202255561,-500.0,0.00038904,7]
[392136287,1761202255576,-535.8652236,0.00038904,5]
[392136288,1761202255588,-500.0,0.00038904,7]
[392136289,1761202255601,-533.65,0.00038904,7]
[392136290,1761202255615,-500.0,0.00038904,7]
[392136291,1761202255628,-500.0,0.00038904,7]
[392136292,1761202255639,-2253.85,0.00038904,7]
[392136293,1761202255652,-5147.27,0.00038904,7]
[392136294,1761202255664,-280.87275102,0.00038904,7]
[392136295,1761202255676,-500.0,0.00038904,7]
[392136296,1761202255688,-500.0,0.00038904,7]
[392136297,1761202255701,-500.0,0.00038904,7]
[392136298,1761202255713,-641.75,0.00038904,2]
[392136299,1761202255725,-500.0,0.00038904,7]
[392136300,1761202255737,-167.6518192,0.00038904,7]
[392136301,1761202255749,-170.19527563,0.00038904,7]
[392136302,1761202255761,-500.0,0.00038904,7]
[392136303,1761202255773,-641.19972414,0.00038904,7]
[392136304,1761202255785,-500.0,0.00038904,2]
[392136305,1761202255797,-500.0,0.00038904,7]
[392136306,1761202255809,-500.0,0.00038904,7]
[392136307,1761202255820,-500.0,0.00038904,7]
[392136308,1761202255832,-1620.7,0.00038904,7]
[392136309,1761202255844,-500.0,0.00038904,7]
[392136310,1761202255858,-500.0,0.00038904,7]
[392136311,1761202255870,-500.0,0.00038904,7]
[392136312,1761202255882,-500.0,0.00038904,7]
[392136313,1761202255895,-159.4303099,0.00038904,7]
[392136314,1761202255907,-152.36152554,0.00038904,7]
[392136315,1761202255920,-500.0,0.00038904,7]
[392136316,1761202255932,-500.0,0.00038904,7]
[392136317,1761202255945,-500.0,0.00038904,7]
[392136318,1761202255958,-512.17668854,0.00038904,7]
[392136319,1761202255969,-514.02,0.00038904,7]
[392136320,1761202255982,-11187.4,0.00038904,3]
[392136321,1761202255993,-268.64062035,0.00038904,7]
[392136322,1761202256006,-500.0,0.00038904,7]
[392136323,1761202256017,-500.0,0.00038904,7]
[392136324,1761202256030,-516.51469864,0.00038904,7]
[392136325,1761202256043,-500.0,0.00038904,7]
[392136326,1761202256056,-502.74557421,0.00038904,7]
[392136327,1761202256066,-500.0,0.00038904,7]
[392136328,1761202256076,-531.3,0.00038904,7]
[392136329,1761202256085,-500.0,0.00038904,7]
[392136330,1761202256203,-1197.47,0.00038904,7]
[392136331,1761202256213,-500.0,0.00038904,7]
[392136332,1761202256223,-500.0,0.00038904,7]
[392136333,1761202256232,-500.0,0.00038904,7]
[392136334,1761202256242,-500.0,0.00038904,7]
[392136335,1761202256251,-500.0,0.00038904,7]
[392136336,1761202256261,-260.18750115,0.00038904,7]
[392136337,1761202256271,-323.87907931,0.00038904,7]
[392136338,1761202256281,-500.0,0.00038904,7]
[392136339,1761202256291,-523.42,0.00038904,7]
[392136340,1761202256301,-500.0,0.00038904,7]
[392136341,1761202256311,-500.0,0.00038904,7]
[392136342,1761202256322,-1700.97,0.00038904,7]
[392136343,1761202256335,-2553.03,0.00038904,7]
[392136344,1761202256344,-500.0,0.00038904,2]
[392136345,1761202256355,-500.0,0.00038904,7]
[392136346,1761202256366,-27239.61,0.00038904,7]
[392136347,1761202256376,-500.0,0.00038904,7]
[392136348,1761202256386,-1208.01,0.00038904,7]
[392136349,1761202256395,-500.0,0.00038904,7]
[392136350,1761202256406,-500.0,0.00038904,7]
[392136351,1761202256415,-500.0,0.00038904,7]
[392136352,1761202256425,-2266.46,0.00038904,7]
[392136353,1761202256435,-618.02,0.00038904,7]
[392136354,1761202256444,-500.0,0.00038904,7]
[392136355,1761202256455,-500.0,0.00038904,7]
[392136356,1761202256464,-514.5,0.00038904,7]
[392136357,1761202256474,-1720.5,0.00038904,7]
[392136358,1761202256487,-500.0,0.00038904,7]
[392136359,1761202256497,-1909.75409733,0.00038946,15]
[392136360,1761202256506,-2921.8230041,0.00039,60]
[392136361,1761202256516,-1000.0,0.00039033,7]
[392136362,1761202256526,-500.0,0.00039178,7]
[392136363,1761202256536,-500.0,0.00039178,7]
[392136364,1761202256545,-1000.0,0.00039178,2]
[392136365,1761202256555,-500.0,0.00039178,7]
[392136366,1761202256564,-500.0,0.00039178,7]
[392136367,1761202256574,-500.0,0.00039178,7]
[392136368,1761202256584,-500.0,0.00039178,7]
[392136369,1761202256593,-500.0,0.00039178,7]
[392136370,1761202256602,-500.0,0.00039178,2]
[392136371,1761202256612,-500.0,0.00039178,7]
[392136372,1761202256622,-500.0,0.00039178,7]
[392136373,1761202256631,-500.0,0.00039178,7]
[392136374,1761202256641,-200.0,0.00039178,7]
[392136375,1761202256651,-500.0,0.00039178,7]
[392136376,1761202256660,-500.0,0.00039178,7]
[392136377,1761202256671,-500.0,0.00039178,7]
[392136378,1761202256681,-505.98344981,0.00039178,7]
[392136379,1761202256692,-1000.0,0.00039178,2]
[392136380,1761202256701,-500.0,0.00039178,5]
[392136381,1761202256710,-500.0,0.00039178,7]
[392136382,1761202256720,-500.0,0.00039178,7]
[392136383,1761202256729,-500.0,0.00039178,7]
[392136384,1761202256739,-2627.49,0.00039178,2]
[392136385,1761202256748,-500.0,0.00039178,7]
[392136386,1761202256758,-754.29,0.00039178,7]
[392136387,1761202256768,-625.65,0.00039178,7]
[392136388,1761202256778,-3507.78,0.00039178,7]
[392136389,1761202256788,-500.0,0.00039178,7]
[392136390,1761202256797,-500.0,0.00039178,7]
[392136391,1761202256806,-500.0,0.00039178,7]
[392136392,1761202256816,-500.0,0.00039178,7]
[392136393,1761202256825,-500.0,0.00039178,7]
[392136394,1761202256834,-533.65,0.00039178,7]
[392136395,1761202256843,-500.0,0.00039178,7]
[392136396,1761202256853,-500.0,0.00039178,7]
[392136397,1761202256863,-2253.85,0.00039178,7]
[392136398,1761202256872,-5147.27,0.00039178,7]
[392136399,1761202256881,-500.0,0.00039178,7]
[392136400,1761202256891,-500.0,0.00039178,7]
[392136401,1761202256901,-341.67947799,0.00039178,7]
[392136402,1761202256910,-641.75,0.00039178,2]
[392136403,1761202256919,-500.0,0.00039178,7]
[392136404,1761202256928,-500.0,0.00039178,7]
[392136405,1761202256938,-159.47959994,0.00039178,2]
[392136406,1761202256948,-500.0,0.00039178,7]
[392136407,1761202256958,-500.0,0.00039178,7]
[392136408,1761202256967,-500.0,0.00039178,7]
[392136409,1761202256976,-1620.7,0.00039178,7]
[392136410,1761202256986,-500.0,0.00039178,7]
[392136411,1761202256996,-500.0,0.00039178,7]
[392136412,1761202257005,-500.0,0.00039178,7]
[392136413,1761202257017,-500.0,0.00039178,7]
[392136414,1761202257026,-500.0,0.00039178,7]
[392136415,1761202257037,-500.0,0.00039178,7]
[392136416,1761202257047,-500.0,0.00039178,7]
[392136417,1761202257057,-514.02,0.00039178,7]
[392136418,1761202257066,-11187.4,0.00039178,3]
[392136419,1761202257076,-500.0,0.00039178,7]
[392136420,1761202257085,-500.0,0.00039178,7]
[392136421,1761202257095,-500.0,0.00039178,7]
[392136422,1761202257104,-500.0,0.00039178,7]
[392136423,1761202257113,-531.3,0.00039178,7]
[392136424,1761202257123,-419.6795222,0.00039178,7]
[392136425,1761202257133,-1197.47,0.00039178,7]
[392136426,1761202257143,-500.0,0.00039178,7]
[392136427,1761202257152,-500.0,0.00039178,7]
[392136428,1761202257162,-500.0,0.00039178,7]